lending/lending_fUSD_20260306
["ID","MTS","AMOUNT","RATE_DAILY","PERIOD"]
[407856611,1772836916614,-500.0,0.00046575,120]
[407856612,1772836916656,-500.0,0.00046575,120]
[407856613,1772836916697,-500.0,0.00046575,120]
[407856614,1772836916737,-500.0,0.00046575,120]
[407856615,1772836916776,-500.0,0.00046575,120]
[407856616,1772836916816,-500.0,0.00046575,120]
[407856617,1772836916860,-500.0,0.00046575,120]
[407856618,1772836916901,-500.0,0.00046575,120]
[407856619,1772836916942,-500.0,0.00046575,120]
[407856620,1772836916982,-500.0,0.00046575,120]
[407856621,1772836917021,-500.0,0.00046575,120]
[407856622,1772836917060,-500.0,0.00046575,120]
[407856623,1772836917100,-177.711871,0.00046575,120]
[407856624,1772836917139,-177.711871,0.00046575,120]
[407856625,1772836917178,-177.711871,0.00046575,120]
[407856626,1772836917218,-177.711871,0.00046575,120]
[407856627,1772836917259,-151.0,0.00046575,120]
[407856628,1772836917300,-656.98,0.00046575,120]
[407856629,1772836917342,-877.8,0.00046575,120]
[407856630,1772836917383,-151.0,0.00046575,120]
[407856631,1772836917422,-151.0,0.00046575,120]
[407856632,1772836917463,-1403.69,0.00046575,120]
[407856633,1772836917505,-857.41,0.00046575,120]
[407856634,1772836917546,-3796.35,0.00046575,120]
[407856635,1772836917586,-151.43,0.00046576,120]
[407856636,1772836917624,-150.0,0.00046578,30]
[407856637,1772836917662,-159.49661076,0.00046586,30]
[407856638,1772836917700,-237.39121081,0.00046586,30]
[407856639,1772836917737,-178.56416906,0.00046586,30]
[407856640,1772836917776,-259.39398879,0.00046586,30]
[407856641,1772836917817,-496.10721813,0.00046586,30]
[407856642,1772836917858,-196.401106,0.00046586,30]
[407856643,1772836917902,-150.0,0.00046594,30]
[407856644,1772836917942,-150.0,0.00046594,30]
[407856645,1772836917981,-298.0,0.00046614,120]
[407856646,1772836918020,-298.0,0.00046614,120]
[407856647,1772836918060,-150.0,0.00046633,30]
[407856648,1772836918101,-159.49661076,0.00046638,30]
[407856649,1772836918141,-237.39121081,0.00046638,30]
[407856650,1772836918185,-178.56416906,0.00046638,30]
[407856651,1772836918228,-259.39398879,0.00046638,30]
[407856652,1772836918270,-496.10721813,0.00046638,30]
[407856653,1772836918311,-196.401106,0.00046638,30]
[407856654,1772836918352,-150.0,0.0004665,30]
[407856655,1772836918396,-941.64402521,0.00046659,120]
[407856656,1772836918438,-1600.0,0.00046666,60]
[407856657,1772836918483,-151.43,0.00046676,120]
[407856658,1772836918527,-150.0,0.00046685,30]
[407856659,1772836918566,-150.0,0.00046688,30]
[407856660,1772836918606,-159.49661076,0.00046689,30]
[407856661,1772836918645,-237.39121081,0.00046689,30]
[407856662,1772836918684,-178.56416906,0.00046689,30]
[407856663,1772836918722,-259.39398879,0.00046689,30]
[407856664,1772836918759,-496.10721813,0.00046689,30]
[407856665,1772836918799,-196.401106,0.00046689,30]
[407856666,1772836918839,-150.0,0.00046692,30]
[407856667,1772836918877,-150.0,0.00046692,30]
[407856668,1772836918916,-504.0,0.0004671,31]
[407856669,1772836918954,-160.77654311,0.00046712,30]
[407856670,1772836918992,-150.0,0.00046715,30]
[407856671,1772836919032,-159.49661076,0.00046741,30]
[407856672,1772836919073,-237.39121081,0.00046741,30]
[407856673,1772836919113,-178.56416906,0.00046741,30]
[407856674,1772836919151,-259.39398879,0.00046741,30]
[407856675,1772836919193,-496.10721813,0.00046741,30]
[407856676,1772836919234,-196.401106,0.00046741,30]
[407856677,1772836919277,-150.0,0.00046743,30]
[407856678,1772836919320,-150.0,0.00046748,30]
[407856679,1772836919363,-469.21,0.0004675,120]
[407856680,1772836919408,-500.0,0.00046767,30]
[407856681,1772836919449,-500.0,0.00046767,30]
[407856682,1772836919491,-500.0,0.00046767,30]
[407856683,1772836919532,-150.0,0.00046776,30]
[407856684,1772836919573,-151.43,0.00046776,120]
[407856685,1772836919612,-219.04510115,0.00046792,120]
[407856686,1772836919652,-159.49661076,0.00046792,30]
[407856687,1772836919691,-237.39121081,0.00046792,30]
[407856688,1772836919730,-178.56416906,0.00046792,30]
[407856689,1772836919769,-259.39398879,0.00046792,30]
[407856690,1772836919809,-150.0,0.00046792,30]
[407856691,1772836919849,-496.10721813,0.00046792,30]
[407856692,1772836919893,-196.401106,0.00046792,30]
[407856693,1772836919937,-150.0,0.00046797,30]
[407856694,1772836919979,-368.77975253,0.000468,120]
[407856695,1772836920017,-217.55636582,0.000468,120]
[407856696,1772836920057,-150.0,0.00046821,30]
[407856697,1772836920097,-150.0,0.0004683,30]
[407856698,1772836920138,-150.0,0.0004683,30]
[407856699,1772836920180,-150.0,0.00046834,120]
[407856700,1772836920222,-150.0,0.00046837,30]
[407856701,1772836920269,-348.35457208,0.00046842,120]
[407856702,1772836920313,-159.49661076,0.00046844,30]
[407856703,1772836920356,-237.39121081,0.00046844,30]
[407856704,1772836920399,-178.56416906,0.00046844,30]
[407856705,1772836920444,-259.39398879,0.00046844,30]
[407856706,1772836920488,-496.10721813,0.00046844,30]
[407856707,1772836920704,-196.401106,0.00046844,30]
[407856708,1772836920748,-150.0,0.00046846,30]
[407856709,1772836920791,-708.06,0.00046849,120]
[407856710,1772836920834,-1855.35,0.00046849,120]
[407856711,1772836920876,-500.0,0.00046849,120]
[407856712,1772836920918,-656.98,0.00046849,120]
[407856713,1772836920960,-877.8,0.00046849,120]
[407856714,1772836921003,-1403.69,0.00046849,120]
[407856715,1772836921045,-857.41,0.00046849,120]
[407856716,1772836921091,-3796.35,0.00046849,120]
[407856717,1772836921147,-8288.65,0.0004685,30]
[407856718,1772836921199,-8288.65,0.0004685,30]
[407856719,1772836921253,-150.0,0.00046852,30]
[407856720,1772836921296,-150.0,0.00046867,30]
[407856721,1772836921341,-12500.0,0.00046875,120]
[407856722,1772836921385,-236.46034477,0.00046876,120]
[407856723,1772836921431,-151.43,0.00046876,120]
[407856724,1772836921474,-159.49661076,0.00046895,30]
[407856725,1772836921516,-237.39121081,0.00046895,30]
[407856726,1772836921557,-178.56416906,0.00046895,30]
[407856727,1772836921598,-259.39398879,0.00046895,30]
[407856728,1772836921638,-496.10721813,0.00046895,30]
[407856729,1772836921686,-196.401106,0.00046895,30]
[407856730,1772836921728,-305.17663862,0.000469,120]
[407856731,1772836921772,-1806.18849652,0.000469,120]
[407856732,1772836921813,-963.664,0.000469,120]
[407856733,1772836921859,-161.35713409,0.000469,120]
[407856734,1772836921906,-213.62871625,0.000469,90]
[407856735,1772836921948,-12930.044,0.000469,120]
[407856736,1772836921988,-12930.044,0.000469,120]
[407856737,1772836922029,-12930.04,0.000469,120]
[407856738,1772836922070,-151.0,0.000469,120]
[407856739,1772836922113,-151.0,0.000469,120]
[407856740,1772836922157,-151.0,0.000469,120]
[407856741,1772836922201,-151.0,0.000469,120]
[407856742,1772836922248,-151.0,0.000469,120]
[407856743,1772836922294,-151.0,0.000469,120]
[407856744,1772836922338,-151.0,0.000469,120]
[407856745,1772836922388,-151.0,0.000469,120]
[407856746,1772836922434,-226.60642,0.000469,120]
[407856747,1772836922477,-151.0,0.000469,120]
[407856748,1772836922519,-151.0,0.000469,120]
[407856749,1772836922560,-14006.923144,0.000469,120]
[407856750,1772836922599,-151.0,0.000469,120]
[407856751,1772836922637,-14006.923144,0.000469,120]
[407856752,1772836922675,-14006.923144,0.000469,120]
[407856753,1772836922712,-14006.923144,0.000469,120]
[407856754,1772836922753,-151.0,0.000469,120]
[407856755,1772836922795,-151.0,0.000469,120]
[407856756,1772836922837,-151.0,0.000469,120]
[407856757,1772836922880,-150.0,0.00046907,30]
[407856758,1772836922921,-150.0,0.00046944,30]
[407856759,1772836922964,-159.49661076,0.00046947,30]
[407856760,1772836923007,-237.39121081,0.00046947,30]
[407856761,1772836923048,-178.56416906,0.00046947,30]
[407856762,1772836923092,-259.39398879,0.00046947,30]
[407856763,1772836923136,-496.10721813,0.00046947,30]
[407856764,1772836923180,-196.401106,0.00046947,30]
[407856765,1772836923223,-218.61207107,0.00046948,120]
[407856766,1772836923266,-218.61207107,0.00046948,120]
[407856767,1772836923311,-278.3076083,0.00046952,120]
[407856768,1772836923359,-150.0,0.00046958,30]
[407856769,1772836923405,-150.0,0.00046958,30]
[407856770,1772836923453,-150.0,0.00046962,30]
[407856771,1772836923498,-150.0,0.00046968,30]
[407856772,1772836923541,-150.0,0.00046968,30]
[407856773,1772836923585,-151.43,0.00046976,120]
[407856774,1772836923628,-213.0,0.0004698,30]
[407856775,1772836923671,-1017.28987722,0.00046998,120]
[407856776,1772836923712,-159.49661076,0.00046998,30]
[407856777,1772836923754,-237.39121081,0.00046998,30]
[407856778,1772836923796,-178.56416906,0.00046998,30]
[407856779,1772836923840,-259.39398879,0.00046998,30]
[407856780,1772836923883,-496.10721813,0.00046998,30]
[407856781,1772836923929,-196.401106,0.00046998,30]
[407856782,1772836923974,-150.0,0.00046998,30]
[407856783,1772836924017,-1000.0,0.00046999,120]
[407856784,1772836924063,-50000.0,0.00047,69]
[407856785,1772836924105,-1578.93735283,0.00047,30]
[407856786,1772836924154,-100000.0,0.00047,30]
[407856787,1772836924201,-152.0,0.00047,120]
[407856788,1772836924247,-151.0,0.00047,120]
[407856789,1772836924292,-189.021769,0.00047,120]
[407856790,1772836924337,-151.0,0.00047,120]
[407856791,1772836924384,-151.0,0.00047,120]
[407856792,1772836924425,-151.0,0.00047,120]
[407856793,1772836924466,-151.0,0.00047,120]
[407856794,1772836924508,-151.0,0.00047,120]
[407856795,1772836924547,-151.0,0.00047,120]
[407856796,1772836924587,-151.0,0.00047,120]
[407856797,1772836924628,-164.904108,0.00047,120]
[407856798,1772836924667,-230.880738,0.00047,120]
[407856799,1772836924706,-151.0,0.00047,120]
[407856800,1772836924748,-151.0,0.00047,120]
[407856801,1772836924788,-1158.388071,0.00047,120]
[407856802,1772836924828,-1158.388071,0.00047,120]
[407856803,1772836924873,-223.396597,0.00047,120]
[407856804,1772836924918,-1158.388071,0.00047,120]
[407856805,1772836924974,-151.0,0.00047,120]
[407856806,1772836925018,-223.396597,0.00047,120]
[407856807,1772836925062,-151.0,0.00047,120]
[407856808,1772836925105,-1158.388071,0.00047,120]
[407856809,1772836925150,-223.396597,0.00047,120]
[407856810,1772836925195,-223.396597,0.00047,120]
[407856811,1772836925435,-151.0,0.00047,120]
[407856812,1772836925511,-154.0,0.00047,120]
[407856813,1772836925556,-151.0,0.00047,120]
[407856814,1772836925599,-151.0,0.00047,120]
[407856815,1772836925642,-151.0,0.00047,120]
[407856816,1772836925688,-154.828057,0.00047,120]
[407856817,1772836925731,-151.0,0.00047,120]
[407856818,1772836925773,-151.0,0.00047,120]
[407856819,1772836925816,-298.0,0.00047,120]
[407856820,1772836925862,-151.0,0.00047,120]
[407856821,1772836925913,-151.0,0.00047,120]
[407856822,1772836925956,-151.0,0.00047,120]
[407856823,1772836926000,-151.0,0.00047,120]
[407856824,1772836926042,-151.0,0.00047,60]
[407856825,1772836926091,-155.597937,0.00047,120]
[407856826,1772836926141,-151.0,0.00047,120]
[407856827,1772836926184,-151.0,0.00047,120]
[407856828,1772836926229,-2370.381515,0.00047,120]
[407856829,1772836926271,-2370.381515,0.00047,120]
[407856830,1772836926316,-151.0,0.00047,120]
[407856831,1772836926361,-151.0,0.00047,30]
[407856832,1772836926407,-151.0,0.00047,120]
[407856833,1772836926452,-151.0,0.00047,120]
[407856834,1772836926500,-199.591417,0.00047,120]
[407856835,1772836926541,-2370.381515,0.00047,120]
[407856836,1772836926583,-178.703958,0.00047,30]
[407856837,1772836926625,-174.298323,0.00047,120]
[407856838,1772836926669,-2370.381515,0.00047,120]
[407856839,1772836926713,-4252.23317,0.00047,120]
[407856840,1772836926756,-4252.23317,0.00047,120]
[407856841,1772836926798,-151.0,0.00047,120]
[407856842,1772836926840,-1436.089081,0.00047,120]
[407856843,1772836926882,-4252.23317,0.00047,120]
[407856844,1772836926927,-151.0,0.00047,120]
[407856845,1772836926972,-151.0,0.00047,120]
[407856846,1772836927014,-1436.089081,0.00047,120]
[407856847,1772836927055,-4252.23317,0.00047,120]
[407856848,1772836927098,-724.615101,0.00047,120]
[407856849,1772836927139,-151.0,0.00047,120]
[407856850,1772836927184,-1436.089081,0.00047,120]
[407856851,1772836927232,-724.615101,0.00047,120]
[407856852,1772836927279,-151.0,0.00047,120]
[407856853,1772836927329,-1436.089081,0.00047,120]
[407856854,1772836927376,-151.0,0.00047,120]
[407856855,1772836927425,-724.615101,0.00047,120]
[407856856,1772836927470,-198.565575,0.00047,120]
[407856857,1772836927518,-724.615101,0.00047,120]
[407856858,1772836927565,-198.565575,0.00047,120]
[407856859,1772836927614,-198.565575,0.00047,120]
[407856860,1772836927657,-198.565575,0.00047,120]
[407856861,1772836927700,-151.0,0.00047,120]
[407856862,1772836927755,-151.0,0.00047,120]
[407856863,1772836927798,-151.0,0.00047,120]
[407856864,1772836927841,-234.511198,0.00047,120]
[407856865,1772836927886,-151.0,0.00047,120]
[407856866,1772836927933,-500.0,0.00047,120]
[407856867,1772836927979,-151.0,0.00047,120]
[407856868,1772836928023,-151.0,0.00047,120]
[407856869,1772836928066,-150.0,0.00047017,30]
[407856870,1772836928109,-500.0,0.00047041,30]
[407856871,1772836928153,-500.0,0.00047041,30]
[407856872,1772836928202,-150.0,0.00047042,30]
[407856873,1772836928246,-150.0,0.00047049,30]
[407856874,1772836928291,-159.49661076,0.0004705,30]
[407856875,1772836928335,-237.39121081,0.0004705,30]
[407856876,1772836928382,-178.56416906,0.0004705,30]
[407856877,1772836928429,-259.39398879,0.0004705,30]
[407856878,1772836928476,-496.10721813,0.0004705,30]
[407856879,1772836928521,-196.401106,0.0004705,30]
[407856880,1772836928566,-439.676529,0.0004707,120]
[407856881,1772836928611,-439.676529,0.0004707,120]
[407856882,1772836928653,-439.676529,0.0004707,120]
[407856883,1772836928696,-439.676529,0.0004707,120]
[407856884,1772836928738,-151.0,0.0004707,120]
[407856885,1772836928779,-151.0,0.0004707,120]
[407856886,1772836928820,-162.173486,0.0004707,120]
[407856887,1772836928864,-162.173486,0.0004707,120]
[407856888,1772836928909,-162.173486,0.0004707,120]
[407856889,1772836928951,-162.173486,0.0004707,120]
[407856890,1772836928992,-151.0,0.0004707,120]
[407856891,1772836929035,-150.0,0.00047071,30]
[407856892,1772836929079,-151.43,0.00047076,120]
[407856893,1772836929123,-150.0,0.00047079,30]
[407856894,1772836929168,-159.49661076,0.00047101,30]
[407856895,1772836929212,-237.39121081,0.00047101,30]
[407856896,1772836929257,-178.56416906,0.00047101,30]
[407856897,1772836929302,-259.39398879,0.00047101,30]
[407856898,1772836929346,-496.10721813,0.00047101,30]
[407856899,1772836929391,-196.401106,0.00047101,30]
[407856900,1772836929437,-150.0,0.00047105,30]
[407856901,1772836929484,-150.0,0.00047105,30]
[407856902,1772836929533,-4179.95774931,0.00047112,50]
[407856903,1772836929580,-162.0,0.00047121,90]
[407856904,1772836929626,-708.06,0.00047123,120]
[407856905,1772836929672,-1855.35,0.00047123,120]
[407856906,1772836929718,-500.0,0.00047123,120]
[407856907,1772836929762,-656.98,0.00047123,120]
[407856908,1772836929806,-877.8,0.00047123,120]
[407856909,1772836929852,-1403.69,0.00047123,120]
[407856910,1772836929901,-857.41,0.00047123,120]
[407856911,1772836929949,-3796.35,0.00047123,120]
[407856912,1772836929993,-150.0,0.00047126,30]
[407856913,1772836930035,-159.1,0.00047137,120]
[407856914,1772836930077,-150.0,0.0004714,30]
[407856915,1772836930121,-150.0,0.0004714,30]
[407856916,1772836930366,-150.0,0.0004714,30]
[407856917,1772836930413,-150.0,0.0004714,30]
[407856918,1772836930463,-50000.0,0.00047149,54]
[407856919,1772836930510,-50000.0,0.00047149,55]
[407856920,1772836930558,-50000.0,0.00047149,56]
[407856921,1772836930607,-50000.0,0.00047149,57]
[407856922,1772836930653,-50000.0,0.00047149,58]
[407856923,1772836930697,-50000.0,0.00047149,59]
[407856924,1772836930740,-50000.0,0.00047149,60]
[407856925,1772836930784,-50000.0,0.00047149,61]
[407856926,1772836930830,-50000.0,0.00047149,62]
[407856927,1772836930876,-50000.0,0.00047149,63]
[407856928,1772836930922,-50000.0,0.00047149,64]
[407856929,1772836930969,-50000.0,0.00047149,65]
[407856930,1772836931013,-18967.37758494,0.00047149,30]
[407856931,1772836931057,-268.92936711,0.0004715,120]
[407856932,1772836931103,-1500.0,0.0004715,30]
[407856933,1772836931148,-1500.0,0.0004715,30]
[407856934,1772836931202,-151.0,0.0004715,30]
[407856935,1772836931248,-408.48,0.0004715,30]
[407856936,1772836931292,-300.0,0.0004715,30]
[407856937,1772836931338,-151.0,0.0004715,30]
[407856938,1772836931382,-202.51,0.0004715,30]
[407856939,1772836931427,-151.0,0.0004715,30]
[407856940,1772836931472,-565.25,0.0004715,30]
[407856941,1772836931516,-151.0,0.0004715,30]
[407856942,1772836931564,-632.7,0.0004715,30]
[407856943,1772836931606,-298.0,0.0004715,30]
[407856944,1772836931646,-151.0,0.0004715,30]
[407856945,1772836931688,-181.95,0.0004715,30]
[407856946,1772836931728,-474.0,0.0004715,30]
[407856947,1772836931768,-180.62,0.0004715,30]
[407856948,1772836931809,-151.0,0.0004715,120]
[407856949,1772836931852,-151.0,0.0004715,120]
[407856950,1772836931893,-151.0,0.0004715,120]
[407856951,1772836931936,-151.0,0.0004715,120]
[407856952,1772836931979,-151.0,0.0004715,120]
[407856953,1772836932021,-151.0,0.0004715,120]
[407856954,1772836932061,-151.0,0.0004715,120]
[407856955,1772836932104,-151.0,0.0004715,120]
[407856956,1772836932149,-151.0,0.0004715,120]
[407856957,1772836932193,-162.929466,0.0004715,120]
[407856958,1772836932239,-162.929466,0.0004715,120]
[407856959,1772836932284,-162.929466,0.0004715,120]
[407856960,1772836932328,-151.0,0.0004715,120]
[407856961,1772836932374,-162.929466,0.0004715,120]
[407856962,1772836932419,-151.0,0.0004715,120]
[407856963,1772836932464,-162.929466,0.0004715,120]
[407856964,1772836932507,-162.929466,0.0004715,120]
[407856965,1772836932554,-162.929466,0.0004715,120]
[407856966,1772836932599,-162.929466,0.0004715,120]
[407856967,1772836932640,-162.929466,0.0004715,120]
[407856968,1772836932680,-162.929466,0.0004715,120]
[407856969,1772836932720,-162.929466,0.0004715,120]
[407856970,1772836932760,-151.0,0.0004715,120]
[407856971,1772836932798,-162.929466,0.0004715,120]
[407856972,1772836932838,-151.0,0.0004715,120]
[407856973,1772836932877,-151.0,0.0004715,120]
[407856974,1772836932918,-151.0,0.0004715,120]
[407856975,1772836932959,-152.546026,0.0004715,120]
[407856976,1772836933002,-151.0,0.0004715,120]
[407856977,1772836933042,-151.0,0.0004715,120]
[407856978,1772836933084,-151.0,0.0004715,120]
[407856979,1772836933125,-151.0,0.0004715,120]
[407856980,1772836933169,-170.602851,0.0004715,120]
[407856981,1772836933217,-151.0,0.0004715,120]
[407856982,1772836933265,-151.0,0.0004715,120]
[407856983,1772836933313,-151.0,0.0004715,120]
[407856984,1772836933360,-151.0,0.0004715,120]
[407856985,1772836933406,-151.0,0.0004715,120]
[407856986,1772836933453,-151.0,0.0004715,120]
[407856987,1772836933500,-151.0,0.0004715,120]
[407856988,1772836933546,-151.0,0.0004715,120]
[407856989,1772836933593,-257.8514,0.0004715,120]
[407856990,1772836933634,-151.0,0.0004715,120]
[407856991,1772836933675,-393.644646,0.0004715,120]
[407856992,1772836933715,-393.644646,0.0004715,120]
[407856993,1772836933756,-393.644646,0.0004715,120]
[407856994,1772836933795,-393.644646,0.0004715,120]
[407856995,1772836933837,-393.644646,0.0004715,120]
[407856996,1772836933878,-393.644646,0.0004715,120]
[407856997,1772836933921,-393.644646,0.0004715,120]
[407856998,1772836933962,-151.0,0.0004715,120]
[407856999,1772836934003,-393.644646,0.0004715,120]
[407857000,1772836934045,-151.0,0.0004715,120]
[407857001,1772836934086,-393.644646,0.0004715,120]
[407857002,1772836934129,-151.0,0.0004715,120]
[407857003,1772836934171,-393.644646,0.0004715,120]
[407857004,1772836934214,-151.0,0.0004715,120]
[407857005,1772836934257,-151.0,0.0004715,120]
[407857006,1772836934302,-393.644646,0.0004715,120]
[407857007,1772836934346,-393.644646,0.0004715,120]
[407857008,1772836934391,-196.866435,0.0004715,120]
[407857009,1772836934435,-151.0,0.0004715,120]
[407857010,1772836934477,-151.0,0.0004715,120]
[407857011,1772836934518,-151.0,0.0004715,120]
[407857012,1772836934562,-151.0,0.0004715,120]
[407857013,1772836934606,-151.0,0.0004715,120]
[407857014,1772836934648,-151.0,0.0004715,120]
[407857015,1772836934690,-151.0,0.0004715,120]
[407857016,1772836934732,-151.0,0.0004715,120]
[407857017,1772836934772,-151.0,0.0004715,120]
[407857018,1772836934813,-151.0,0.0004715,120]
[407857019,1772836934853,-151.0,0.0004715,120]
[407857020,1772836935051,-989.134097,0.0004715,120]
[407857021,1772836935101,-151.0,0.0004715,120]
[407857022,1772836935150,-989.134097,0.0004715,120]
[407857023,1772836935200,-989.134097,0.0004715,120]
[407857024,1772836935251,-151.0,0.0004715,120]
[407857025,1772836935303,-300.795903,0.0004715,120]
[407857026,1772836935355,-989.134097,0.0004715,120]
[407857027,1772836935404,-989.134097,0.0004715,120]
[407857028,1772836935453,-989.134097,0.0004715,120]
[407857029,1772836935501,-989.134097,0.0004715,120]
[407857030,1772836935547,-989.134097,0.0004715,120]
[407857031,1772836935594,-989.134097,0.0004715,120]
[407857032,1772836935642,-272.794144,0.0004715,120]
[407857033,1772836935689,-989.134097,0.0004715,120]
[407857034,1772836935734,-272.794144,0.0004715,120]
[407857035,1772836935780,-989.134097,0.0004715,120]
[407857036,1772836935825,-272.794144,0.0004715,120]
[407857037,1772836935873,-989.134097,0.0004715,120]
[407857038,1772836935919,-272.794144,0.0004715,120]
[407857039,1772836935965,-272.794144,0.0004715,120]
[407857040,1772836936011,-272.794144,0.0004715,120]
[407857041,1772836936058,-272.794144,0.0004715,120]
[407857042,1772836936104,-272.794144,0.0004715,120]
[407857043,1772836936148,-272.794144,0.0004715,120]
[407857044,1772836936194,-272.794144,0.0004715,120]
[407857045,1772836936241,-272.794144,0.0004715,120]
[407857046,1772836936286,-272.794144,0.0004715,120]
[407857047,1772836936334,-151.0,0.0004715,120]
[407857048,1772836936379,-175.235128,0.0004715,120]
[407857049,1772836936426,-186.705099,0.0004715,120]
[407857050,1772836936473,-151.0,0.0004715,120]
[407857051,1772836936518,-151.0,0.0004715,120]
[407857052,1772836936563,-151.0,0.0004715,120]
[407857053,1772836936609,-151.0,0.0004715,120]
[407857054,1772836936655,-151.0,0.0004715,120]
[407857055,1772836936700,-151.0,0.0004715,120]
[407857056,1772836936747,-151.0,0.0004715,120]
[407857057,1772836936792,-151.0,0.0004715,120]
[407857058,1772836936838,-151.0,0.0004715,120]
[407857059,1772836936884,-151.0,0.0004715,120]
[407857060,1772836936928,-151.0,0.0004715,120]
[407857061,1772836936976,-151.0,0.0004715,120]
[407857062,1772836937020,-151.0,0.0004715,120]
[407857063,1772836937063,-151.0,0.0004715,120]
[407857064,1772836937107,-151.0,0.0004715,120]
[407857065,1772836937150,-151.0,0.0004715,120]
[407857066,1772836937193,-151.0,0.0004715,120]
[407857067,1772836937238,-151.0,0.0004715,120]
[407857068,1772836937284,-151.0,0.0004715,120]
[407857069,1772836937328,-151.0,0.0004715,120]
[407857070,1772836937373,-204.12728,0.0004715,120]
[407857071,1772836937417,-207.935119,0.0004715,120]
[407857072,1772836937462,-151.0,0.0004715,120]
[407857073,1772836937507,-151.0,0.0004715,120]
[407857074,1772836937551,-151.0,0.0004715,120]
[407857075,1772836937593,-151.0,0.0004715,120]
[407857076,1772836937634,-2370.381515,0.0004715,120]
[407857077,1772836937676,-151.0,0.0004715,120]
[407857078,1772836937716,-2370.381515,0.0004715,120]
[407857079,1772836937759,-151.0,0.0004715,120]
[407857080,1772836937801,-2370.381515,0.0004715,120]
[407857081,1772836937845,-151.0,0.0004715,120]
[407857082,1772836937889,-2370.381515,0.0004715,120]
[407857083,1772836937933,-151.0,0.0004715,120]
[407857084,1772836937977,-2370.381515,0.0004715,120]
[407857085,1772836938022,-151.0,0.0004715,120]
[407857086,1772836938066,-151.0,0.0004715,30]
[407857087,1772836938111,-2370.381515,0.0004715,120]
[407857088,1772836938157,-151.0,0.0004715,120]
[407857089,1772836938202,-151.0,0.0004715,30]
[407857090,1772836938247,-151.0,0.0004715,120]
[407857091,1772836938293,-151.0,0.0004715,30]
[407857092,1772836938338,-151.0,0.0004715,120]
[407857093,1772836938382,-2370.381515,0.0004715,120]
[407857094,1772836938430,-151.0,0.0004715,120]
[407857095,1772836938477,-2370.381515,0.0004715,120]
[407857096,1772836938520,-2370.381515,0.0004715,120]
[407857097,1772836938566,-2370.381515,0.0004715,120]
[407857098,1772836938611,-2370.381515,0.0004715,120]
[407857099,1772836938653,-2370.381515,0.0004715,120]
[407857100,1772836938694,-4252.23317,0.0004715,120]
[407857101,1772836938736,-4252.23317,0.0004715,120]
[407857102,1772836938777,-4252.23317,0.0004715,120]
[407857103,1772836938819,-4252.23317,0.0004715,120]
[407857104,1772836938861,-4252.23317,0.0004715,120]
[407857105,1772836938907,-151.0,0.0004715,120]
[407857106,1772836938949,-4252.23317,0.0004715,120]
[407857107,1772836938990,-151.0,0.0004715,120]
[407857108,1772836939031,-151.0,0.0004715,120]
[407857109,1772836939072,-1436.089081,0.0004715,120]
[407857110,1772836939113,-4252.23317,0.0004715,120]